bitfinex/quotes_ETHUSD_20240810
["timestamp","ask_amount","ask_price","bid_price","bid_amount"]
[1723318690518,1.9929023,2611.6,2611.2,0.55]
[1723318691345,3.106,2611.5,2611.2,0.55]
[1723318691544,0.078073,2611.4,2611.2,0.55]
[1723318693147,0.078073,2611.4,2611.1,0.55]
[1723318693452,0.078073,2611.4,2611.1,1.15649892]
[1723318693814,1.9148,2611.3,2611.0,0.59994918]
[1723318694329,0.07896418,2611.2,2611.0,0.59994918]
[1723318694656,1.9148,2611.3,2611.0,0.59994918]
[1723318695182,0.07785322,2611.2,2611.0,0.59994918]
[1723318695339,1.9148,2611.3,2611.0,0.59994918]
[1723318695681,0.07785322,2611.2,2611.0,0.59994918]
[1723318696058,3.8298,2611.1,2611.0,0.59994918]
[1723318696276,1.91512,2610.8,2610.2,5.13255]
[1723318696650,0.07867421,2610.7,2610.4,0.60012097]
[1723318696855,0.07867421,2610.7,2610.4,1.17338807]
[1723318697167,0.0785654,2610.6,2610.4,1.17338807]
[1723318697334,3.83,2611.0,2610.4,4.17338807]
[1723318697539,0.0787359,2610.9,2610.4,4.17338807]
[1723318697849,1.9937859,2610.9,2610.5,0.60888281]
[1723318698764,0.0787359,2610.9,2610.5,0.60888281]
[1723318699271,0.0787359,2610.9,2610.4,0.60012097]
[1723318699272,2.9373,2610.8,2610.4,0.60012097]
[1723318699574,1.99358353,2610.7,2610.2,3.0]
[1723318699737,1.99358353,2610.7,2610.1,4.91558]
[1723318699939,1.99358353,2610.7,2610.2,0.383128]
[1723318700852,3.90883353,2610.7,2610.2,0.383128]
[1723318701143,1.91527,2610.6,2610.2,0.383128]
[1723318701470,0.07684402,2610.5,2610.2,0.383128]
[1723318701651,0.07684402,2610.5,2610.3,0.3383128]
[1723318701851,1.91521,2610.7,2610.3,0.3383128]
[1723318702052,0.07672689,2610.4,2610.3,0.3383128]
[1723318702253,1.91521,2610.7,2610.3,0.3383128]
[1723318702480,0.07801586,2610.4,2610.3,0.3383128]
[1723318702686,2.9373,2610.8,2610.3,0.3383128]
[1723318702893,2.9373,2611.0,2610.4,2.4654]
[1723318703095,2.9373,2611.0,2610.5,0.68633334]
[1723318704773,2.9373,2611.0,2610.5,2.60165334]
[1723318707798,2.9373,2611.0,2610.6,1.91522]
[1723318708559,4.85213,2611.2,2610.7,0.07660025]
[1723318708760,4.85213,2611.2,2610.7,0.52828749]
[1723318709589,4.85213,2611.2,2610.7,0.45168724]
[1723318709792,4.85213,2611.2,2610.6,1.91522]
[1723318710175,1.9149,2611.1,2610.5,3.83061]
[1723318710463,3.82985,2611.1,2610.5,1.91529]
[1723318710664,1.9149,2611.1,2610.5,1.91529]
[1723318713172,2.9373,2611.2,2610.6,1.91521]
[1723318714193,4.85217,2611.2,2610.6,1.91521]
[1723318714971,4.85217,2611.2,2610.5,1.91529]
[1723318715294,4.85217,2611.2,2610.6,1.91521]
[1723318715466,4.85217,2611.2,2610.6,2.65326]
[1723318716809,4.85217,2611.2,2610.7,1.91519]
[1723318717024,2.9373,2611.2,2610.7,1.91519]
[1723318717597,0.07276771,2611.1,2610.7,1.91519]
[1723318718181,0.07276771,2611.1,2610.8,1.9151]
[1723318718401,0.07276771,2611.1,2610.8,1.99169696]
[1723318718899,0.07276771,2611.1,2610.8,1.9151]
[1723318720202,0.07276771,2611.1,2610.8,2.371934]
[1723318721702,0.07276771,2611.1,2610.8,1.9151]
[1723318722602,0.07276771,2611.1,2610.4,3.55]
[1723318722603,0.07276771,2611.1,2610.5,3.8306]
[1723318722811,0.07276771,2611.1,2610.5,1.91528]
[1723318722994,0.07276771,2611.1,2610.5,3.83056]
[1723318723204,0.07276771,2611.1,2610.6,1.91521]
[1723318723511,0.07276771,2611.1,2610.7,1.91518]
[1723318723720,1.98766771,2611.1,2610.5,1.91528]
[1723318723886,2.9523,2611.0,2610.5,1.91528]
[1723318724270,0.07258478,2610.9,2610.5,1.91528]
[1723318724471,0.07258478,2610.9,2610.5,2.653352]
[1723318727631,0.07258478,2610.9,2610.6,1.91524]
[1723318727923,0.07258478,2610.9,2610.8,3.83024]
[1723318728107,0.07258478,2610.9,2610.8,4.38024]
[1723318728289,4.86708,2611.3,2610.8,0.988024]
[1723318728490,0.07255801,2610.9,2610.8,0.55]
[1723318728692,4.86708,2611.3,2610.8,0.55]
[1723318729006,0.07283133,2611.2,2610.8,0.55]
[1723318729394,4.86708,2611.3,2610.8,0.55]
[1723318729607,0.07283133,2611.2,2610.8,0.55]
[1723318729795,4.86708,2611.3,2610.8,0.55]
[1723318730114,0.07283133,2611.2,2610.8,0.55]
[1723318730425,4.86708,2611.3,2610.8,0.55]
[1723318730623,0.07274023,2611.1,2610.8,0.55]
[1723318730788,0.07283133,2611.2,2610.8,0.55]
[1723318731118,5.54525,2611.3,2610.8,0.55]
[1723318731315,0.07274023,2611.1,2610.8,2.4651]
[1723318731519,3.63047,2611.3,2610.8,2.4651]
[1723318731520,0.07283133,2611.2,2610.8,2.46507]
[1723318731678,0.07264913,2611.0,2610.8,2.46507]
[1723318731873,2.9523,2611.3,2610.8,2.46507]
[1723318732077,0.07255801,2610.9,2610.8,2.46507]
[1723318732305,2.9523,2611.3,2610.8,2.46507]
[1723318732521,0.07255801,2610.9,2610.8,5.38277]
[1723318732767,12.19,2611.9,2610.8,5.38277]
[1723318732768,9.21417,2612.1,2611.2,1.91477]
[1723318732930,4.86658,2612.0,2611.4,1.91465]
[1723318733124,1.91431,2611.9,2611.2,4.83246]
[1723318733629,1.91431,2611.9,2611.2,6.74723]
[1723318734256,1.91431,2611.9,2611.2,7.421953]
[1723318734636,1.91431,2611.9,2611.3,0.07657999]
[1723318737698,1.91431,2611.9,2611.3,1.99131999]
[1723318741793,1.91431,2611.9,2611.3,3.14531999]
[1723318743103,2.987,2611.8,2611.3,3.14531999]
[1723318743311,3.477131,2611.7,2611.1,1.91487]
[1723318743508,2.987,2611.6,2610.9,1.154]
[1723318743811,1.154,2611.8,2610.1,0.34368188]
[1723318743812,2.987,2611.2,2610.5,3.0693]
[1723318744021,2.987,2611.2,2610.6,1.91526]
[1723318744022,4.90187,2611.2,2610.6,1.91526]
[1723318744225,2.987,2611.1,2610.6,1.91526]
[1723318744688,2.987,2611.1,2610.5,3.06929]
[1723318744886,2.987,2611.1,2610.5,4.98458]
[1723318745116,2.987,2611.1,2610.5,3.06929]
[1723318745715,3.668666,2611.1,2610.5,1.91529]
[1723318746108,3.668666,2611.1,2610.5,3.83058]
[1723318747207,3.668666,2611.1,2610.5,1.91529]
[1723318747730,0.07157281,2611.0,2610.5,1.91529]
[1723318749890,0.07157281,2611.0,2610.6,1.91521]
[1723318750103,0.07157281,2611.0,2610.7,1.91512]
[1723318752305,2.987,2610.9,2610.5,1.91529]
[1723318752691,0.07124995,2610.8,2610.5,1.91529]
[1723318753508,0.07124995,2610.8,2610.6,1.91521]
[1723318753695,0.07124995,2610.8,2610.7,1.91519]
[1723318754309,3.1884,2611.1,2610.5,2.406799]
[1723318754547,0.07122541,2610.8,2610.5,1.91527]
[1723318754714,3.1884,2611.1,2610.5,1.91527]
[1723318755247,0.07140774,2611.0,2610.5,1.91527]
[1723318755610,0.07140774,2611.0,2610.6,1.91526]
[1723318758436,0.07140774,2611.0,2610.6,1.91521]
[1723318759416,0.07140774,2611.0,2610.7,1.91514]
[1723318765767,0.07140774,2611.0,2610.9,1.91504]
[1723318765938,0.07140774,2611.0,2610.9,3.83008]
[1723318766139,10.4884,2611.4,2611.2,1.91481]
[1723318766351,3.1884,2611.4,2611.2,1.91481]
[1723318766874,9.91787984,2611.7,2611.2,1.91478]
[1723318767782,9.21433,2611.9,2611.3,1.23058219]
[1723318767783,10.4884,2611.9,2611.3,1.23058219]
[1723318767993,10.4884,2611.9,2611.5,1.154]
[1723318769324,10.4884,2611.9,2611.6,1.91452]
[1723318771689,3.1884,2611.9,2611.6,1.91452]
[1723318773093,3.1884,2611.9,2611.6,3.829]
[1723318773449,3.1884,2611.9,2611.6,1.91448]
[1723318773964,3.1884,2611.9,2611.6,3.82896]
[1723318774171,3.1884,2611.9,2611.8,1.91438]
[1723318774352,3.011,2612.2,2611.9,1.91426]
[1723318774560,3.011,2612.2,2611.9,3.06826]
[1723318776503,3.011,2612.2,2611.8,1.91438]
[1723318777454,3.011,2612.2,2611.3,3.34032822]
[1723318777455,3.011,2612.1,2611.4,1.91465]
[1723318777655,3.011,2611.7,2611.1,1.154]
[1723318778003,0.07100758,2611.6,2611.2,1.91478]
[1723318778155,0.07100758,2611.6,2611.1,1.154]
[1723318778156,3.011,2611.5,2611.1,1.154]
[1723318778356,4.92565,2611.5,2610.8,1.91507]
[1723318778588,0.07093318,2611.4,2610.8,1.91507]
[1723318778761,3.011,2611.2,2610.5,1.154]
[1723318779104,1.98547593,2611.1,2610.5,1.154]
[1723318779791,1.98547593,2611.1,2610.4,3.83072]
[1723318780789,1.98547593,2611.1,2610.5,1.91532]
[1723318781664,1.9149,2611.1,2610.5,1.91532]
[1723318781865,0.07030864,2611.0,2610.5,1.91532]
[1723318782066,0.07030864,2611.0,2610.8,1.91507]
[1723318782491,3.011,2611.2,2610.8,1.91507]
[1723318782700,0.07019375,2610.9,2610.8,1.91507]
[1723318782902,3.011,2611.2,2610.8,1.91507]
[1723318783386,0.07049487,2611.1,2610.9,1.91503]
[1723318783580,0.07049487,2611.1,2611.0,1.91497]
[1723318783787,0.07049487,2611.1,2611.0,4.21294]
[1723318783972,0.07049487,2611.1,2611.0,4.76294]
[1723318784193,3.011,2611.5,2611.1,1.91487]
[1723318784916,3.011,2611.5,2611.2,1.91482]
[1723318785475,3.011,2611.5,2611.2,1.91477]
[1723318785711,3.011,2611.8,2611.3,1.9147]
[1723318787412,7.3,2611.9,2611.1,2.9063]
[1723318787578,7.3,2611.9,2611.4,1.91465]
[1723318788478,7.3,2611.9,2611.5,1.91455]
[1723318789391,7.3,2611.9,2611.4,1.91466]
[1723318789588,7.3,2611.9,2611.0,1.91491]
[1723318789589,1.91448,2611.7,2611.0,1.91491]
[1723318789777,1.91448,2611.7,2610.8,5.6783]
[1723318789778,0.492548,2611.6,2611.1,1.91489]
[1723318791788,2.407088,2611.6,2611.1,1.91489]
[1723318792498,4.92562,2611.5,2610.8,1.91508]
[1723318792695,1.91468,2611.4,2610.8,1.91508]
[1723318792900,1.98526681,2611.4,2610.8,1.91508]
[1723318793285,1.98526681,2611.4,2610.8,3.83015]
[1723318793804,1.98526681,2611.4,2610.9,1.91504]
[1723318794124,0.07058681,2611.4,2611.0,1.91497]
[1723318795120,0.07058681,2611.4,2610.8,1.91506]
[1723318795121,1.98531681,2611.4,2610.8,1.91506]
[1723318795428,3.1429,2611.2,2610.7,1.91515]
[1723318795612,3.1429,2611.2,2610.6,1.9152]
[1723318795802,0.07036109,2611.1,2610.6,5.7222268]
[1723318796483,0.07036109,2611.1,2610.8,1.9151]
[1723318797889,3.1429,2611.0,2610.8,1.9151]
[1723318798090,0.0701313,2610.9,2610.8,1.9151]
[1723318800517,3.1429,2611.3,2610.8,1.9151]
[1723318800692,0.06888988,2610.9,2610.8,1.9151]
[1723318800895,3.1429,2611.3,2610.8,1.9151]
[1723318801096,0.06888988,2610.9,2610.8,1.9151]
[1723318801316,3.1429,2611.3,2610.8,1.9151]
[1723318801624,0.06888988,2610.9,2610.8,1.9151]
[1723318801788,3.1429,2611.3,2610.9,1.91503]
[1723318802423,3.1429,2611.3,2611.0,1.91497]
[1723318802795,0.06909865,2611.2,2610.7,1.91515]
[1723318802994,0.06909865,2611.2,2610.8,1.91506]
[1723318803234,0.06909865,2611.2,2610.9,1.91503]
[1723318803404,3.1429,2611.3,2610.9,1.91503]
[1723318803616,0.0690075,2611.1,2610.9,1.91503]
[1723318803821,3.1429,2611.3,2610.9,1.915]
[1723318804057,0.06891634,2611.0,2610.9,1.915]
[1723318804268,7.3,2611.4,2611.3,1.91475]
[1723318804564,9.87237984,2611.8,2611.5,1.91459]
[1723318804762,3.1429,2611.8,2611.5,1.91459]
[1723318805077,3.1429,2611.8,2611.2,1.91482]
[1723318805279,3.1429,2611.4,2610.9,1.915]
[1723318805939,3.1429,2611.4,2610.7,1.91513]
[1723318807147,1.91475,2611.3,2610.7,3.83027]
[1723318807349,3.1429,2611.4,2610.9,1.91503]
[1723318807674,5.563342,2611.4,2610.9,1.91503]
[1723318808237,5.563342,2611.4,2610.7,3.83026]
[1723318808439,5.563342,2611.4,2610.7,1.91513]
[1723318808643,5.05773,2611.2,2610.7,1.91513]
[1723318808853,5.8055542,2611.2,2610.7,1.91513]
[1723318809853,3.8907242,2611.2,2610.7,1.91513]
[1723318810088,3.1429,2611.2,2610.7,1.91513]
[1723318810663,0.06653343,2611.1,2610.7,1.91513]
[1723318811352,0.06653343,2611.1,2610.5,101.9153]
[1723318811353,3.1429,2611.0,2610.5,101.9153]
[1723318811597,3.20930434,2611.0,2610.5,101.9153]
[1723318812309,3.20930434,2611.0,2610.5,101.91528]
[1723318815578,5.12428434,2611.0,2610.5,101.91528]
[1723318815784,1.91523,2610.7,2610.5,100.0]
[1723318816016,6.78332,2610.6,2610.5,100.0]
[1723318817627,8.69858,2610.6,2610.5,100.0]
[1723318817782,10.724438,2610.6,2610.5,100.0]
[1723318817986,13.724438,2610.6,2610.5,100.0]
[1723318818219,13.79168194,2610.6,2610.5,100.0]
[1723318818433,15.80694194,2610.6,2610.5,100.0]
[1723318818732,16.42762446,2610.6,2610.5,46.19091719]
[1723318818879,14.76302446,2610.6,2610.5,44.52631719]
[1723318819097,14.82988301,2610.6,2610.5,44.52631719]
[1723318819449,14.82988301,2610.6,2610.5,38.78029719]
[1723318819602,16.74514301,2610.6,2610.5,34.94961719]
[1723318819803,18.76484819,2610.6,2610.5,33.28180871]
[1723318820199,18.76484819,2610.6,2610.5,29.53877871]
[1723318820401,18.76484819,2610.6,2610.5,21.87741871]
[1723318820722,16.84958819,2610.6,2610.5,21.87741871]
[1723318821131,15.52346173,2610.6,2610.5,21.87741871]
[1723318821448,16.84970328,2610.6,2610.5,19.96207871]
[1723318821643,16.74970328,2610.6,2610.5,19.96207871]
[1723318821805,16.84972391,2610.6,2610.5,19.96207871]
[1723318822117,16.84969482,2610.6,2610.5,19.96207871]
[1723318822314,15.42346173,2610.6,2610.5,19.96207871]
[1723318823216,15.52346173,2610.6,2610.5,19.96207871]
[1723318823940,15.42346173,2610.6,2610.5,19.96207871]
[1723318824934,13.60820173,2610.6,2610.5,19.96207871]
[1723318825306,13.50820173,2610.6,2610.5,19.96207871]
[1723318826016,7.94294173,2610.6,2610.5,19.96207871]
[1723318826216,7.54223655,2610.6,2610.5,19.96207871]
[1723318827456,10.54223655,2610.6,2610.5,19.96207871]
[1723318828164,12.45749655,2610.6,2610.5,19.96207871]
[1723318828328,14.47275655,2610.6,2610.5,19.96207871]
[1723318828533,15.02275655,2610.6,2610.5,19.96207871]
[1723318832080,15.20888358,2610.6,2610.5,19.96207871]
[1723318832433,15.24807974,2610.6,2610.5,19.96207871]
[1723318832885,15.24807974,2610.6,2610.5,15.69969871]
[1723318833075,15.64867568,2610.6,2610.5,9.95367871]
[1723318833275,15.64867568,2610.6,2610.5,8.03833871]
[1723318834712,15.64867568,2610.6,2610.5,3.6e-06]
[1723318835026,15.64867568,2610.6,2608.8,1.91653]
[1723318835027,1.91634,2609.2,2608.8,2.9921]
[1723318835509,2.02094362,2609.1,2608.8,2.9921]
[1723318836372,1.91644,2609.0,2608.8,2.9921]
[1723318836614,2.02087905,2609.0,2608.8,2.9921]
[1723318836973,0.10443905,2609.0,2608.8,2.9921]
[1723318837183,1.91634,2609.2,2608.8,2.9921]
[1723318837400,0.10431464,2608.9,2608.8,2.9921]
[1723318837603,1.91634,2609.2,2608.8,2.9921]
[1723318837604,3.83269,2609.2,2608.8,2.9921]
[1723318837973,0.1031789,2609.1,2608.8,2.9921]
[1723318839907,6.83265874,2609.1,2608.8,2.9921]
[1723318840931,6.83265874,2609.1,2608.8,5.20788]
[1723318841130,6.83265874,2609.1,2608.9,2.9921]
[1723318842443,6.83265874,2609.1,2609.0,4.90854]
[1723318843700,6.83265874,2609.1,2609.0,6.82498]
[1723318845477,6.83265874,2609.1,2609.0,4.90854]
[1723318845629,6.83265874,2609.1,2609.0,2.9921]
[1723318845949,0.1031789,2609.1,2609.0,5.620976]
[1723318846144,7.3,2609.5,2609.0,2.628876]
[1723318846304,7.3,2609.5,2609.1,3.1359]
[1723318846499,0.10434667,2609.4,2609.1,3.1359]
[1723318846818,0.10434667,2609.4,2609.1,3.7123776]
[1723318849682,0.10434667,2609.4,2609.3,3.1359]
[1723318851942,9.21579,2609.9,2609.3,3.1359]
[1723318852148,0.10465862,2609.8,2609.3,3.1359]
[1723318854775,0.10465862,2609.8,2609.5,2.3114]
[1723318854950,0.10465862,2609.8,2609.6,2.3114]
[1723318858297,6.72947984,2610.1,2609.6,2.3114]
[1723318858484,0.10115765,2609.7,2609.6,2.3114]
[1723318858651,6.72947984,2610.1,2609.6,2.3114]
[1723318859286,0.10142665,2610.0,2609.6,2.3114]
[1723318859853,0.10142665,2610.0,2609.6,4.22739]
[1723318860082,0.10142665,2610.0,2609.7,1.91588]
[1723318860294,7.3,2610.2,2609.8,2.3114]
[1723318860481,0.1013966,2609.9,2609.8,2.3114]
[1723318860666,7.3,2610.2,2609.8,1.91584]
[1723318860882,7.3,2610.2,2609.9,2.3114]
[1723318861083,6.72947984,2610.3,2609.9,2.3114]
[1723318861285,8.97045558,2610.3,2609.9,2.3114]
[1723318862096,1.91559,2610.2,2609.9,2.3114]
[1723318864058,8.97045558,2610.3,2609.9,2.3114]
[1723318866685,1.57486757,2610.5,2609.9,2.3114]
[1723318867529,1.57486757,2610.5,2610.0,2.3114]
[1723318867829,0.1019124,2610.4,2610.0,2.3114]
[1723318872320,0.1019124,2610.4,2610.0,4.22709]
[1723318872554,0.1019124,2610.4,2610.1,2.3114]
[1723318872842,0.10181656,2610.3,2610.1,2.3114]
[1723318873155,7.3,2610.6,2610.1,2.3114]
[1723318873346,0.10172468,2610.2,2610.1,2.3114]
[1723318873555,9.21531,2610.6,2610.1,2.3114]
[1723318873719,0.10172468,2610.2,2610.1,2.3114]
[1723318873911,1.03,2610.5,2610.1,2.3114]
[1723318874112,0.10170062,2610.2,2610.1,2.3114]
[1723318874316,1.03,2610.5,2610.1,2.3114]
[1723318874519,0.10170062,2610.2,2610.1,2.3114]
[1723318874735,2.939991,2610.4,2610.1,2.3114]
[1723318874934,2.01726911,2610.2,2610.1,2.3114]
[1723318875152,1.91556,2610.2,2610.1,2.3114]
[1723318875345,2.01726911,2610.2,2610.1,2.3114]
[1723318875549,2.51299512,2610.2,2610.1,2.3114]
[1723318879416,0.59743512,2610.2,2610.1,2.3114]
[1723318879755,0.10170911,2610.2,2610.1,2.3114]
[1723318879957,6.72947984,2610.3,2610.1,2.3114]
[1723318880251,0.10191963,2610.2,2610.1,2.3114]
[1723318880557,6.72947984,2610.3,2610.1,2.3114]
[1723318880929,0.10167429,2610.2,2610.1,2.3114]
[1723318881145,6.72947984,2610.3,2610.1,2.3114]
[1723318881341,7.79975722,2610.3,2610.1,2.3114]
[1723318881546,0.10168323,2610.2,2610.1,2.3114]
[1723318881854,1.07027738,2610.3,2610.1,2.3114]
[1723318882029,0.10168546,2610.2,2610.1,2.3114]
[1723318882511,1.07027738,2610.3,2610.1,2.3114]
[1723318882714,0.10168546,2610.2,2610.1,2.3114]
[1723318883131,0.10168099,2610.2,2610.1,2.3114]
[1723318883433,1.07027738,2610.3,2610.1,2.3114]
[1723318883640,0.10168099,2610.2,2610.1,2.3114]
[1723318884081,1.07027738,2610.3,2610.1,2.3114]
[1723318884378,0.10168323,2610.2,2610.1,2.3114]
[1723318884676,1.07027738,2610.3,2610.1,2.3114]
[1723318884993,0.10168323,2610.2,2610.1,2.3114]
[1723318885351,1.07027738,2610.3,2610.1,2.3114]
[1723318885562,0.10168323,2610.2,2610.1,2.3114]
[1723318885881,9.67277385,2610.4,2610.1,2.3114]
[1723318885882,6.73278285,2610.4,2610.1,2.3114]
[1723318886063,0.09817084,2610.2,2610.1,2.3114]
[1723318886264,6.73278285,2610.4,2610.1,2.3114]
[1723318886443,0.09817084,2610.2,2610.1,2.3114]
[1723318886642,6.73278285,2610.4,2610.1,2.3114]
[1723318886839,0.09817084,2610.2,2610.1,2.3114]
[1723318887176,0.09826061,2610.2,2610.1,2.3114]
[1723318887374,6.73278285,2610.4,2610.1,2.3114]
[1723318887532,0.09835025,2610.3,2610.1,2.3114]
[1723318897872,0.09835025,2610.3,2610.2,0.07662519]
[1723318898186,0.09835025,2610.3,2610.2,7.77504519]
[1723318905459,0.09835025,2610.3,2610.2,8.32504519]
[1723318906778,0.09835025,2610.3,2610.2,8.24842]
[1723318911469,0.09835025,2610.3,2610.2,6.54242]
[1723318911685,0.09835025,2610.3,2610.2,7.69842]
[1723318916280,0.09835025,2610.3,2610.2,3.8673]
[1723318916485,0.09835025,2610.3,2610.2,2.7113]
[1723318916793,0.09835025,2610.3,2609.9,2.845]
[1723318917139,1.91556,2610.2,2609.9,2.845]
[1723318917482,0.09860896,2610.1,2609.9,2.845]
[1723318919136,1.91611,2609.5,2609.1,2.845]
[1723318919427,0.09786551,2609.4,2609.1,2.845]
[1723318919590,0.09786551,2609.4,2608.7,1.156]
[1723318919787,1.91623,2609.3,2608.8,2.845]
[1723318920293,0.09751377,2609.2,2608.8,2.845]
[1723318920717,1.91623,2609.3,2608.8,2.845]
[1723318920910,0.09779762,2609.1,2608.8,2.845]
[1723318921236,1.91623,2609.3,2608.8,2.845]
[1723318921237,0.09770791,2609.0,2608.8,2.845]
[1723318921423,1.91623,2609.3,2608.8,2.845]
[1723318921594,0.0976182,2608.9,2608.8,2.845]
[1723318921800,1.91623,2609.3,2608.8,2.845]
[1723318922029,0.09788732,2609.2,2608.8,2.845]
[1723318922509,1.91611,2609.5,2608.8,2.845]
[1723318922832,4.91583,2609.9,2609.1,1.91635]
[1723318923030,0.09761485,2609.4,2609.2,2.845]
[1723318923195,1.91583,2609.9,2609.2,2.845]
[1723318923396,1.91583,2609.9,2609.2,4.76127]
[1723318923397,0.58956327,2609.8,2609.2,4.76127]
[1723318923821,0.09798027,2609.8,2609.2,4.76127]
[1723318924427,0.09798027,2609.8,2609.3,2.845]
[1723318924637,2.01385027,2609.8,2609.3,2.845]
[1723318924845,1.91593,2609.7,2609.3,2.845]
[1723318925003,2.01382961,2609.7,2609.3,2.845]
[1723318925344,0.39296996,2609.6,2609.3,2.845]
[1723318925842,0.09772027,2609.5,2609.3,2.845]
[1723318926342,1.91578,2609.9,2609.3,2.845]
[1723318926506,0.09769581,2609.4,2609.3,2.845]
[1723318926705,1.91578,2609.9,2609.3,2.845]
[1723318926935,0.09769581,2609.4,2609.3,2.845]
[1723318927402,1.91578,2609.9,2609.3,2.845]
[1723318927601,0.48120549,2609.8,2609.3,2.845]
[1723318930735,0.48120549,2609.8,2609.3,4.7612]
[1723318930943,0.48120549,2609.8,2609.3,2.845]
[1723318932855,2.39706549,2609.8,2609.3,2.845]
[1723318935260,3.83205,2609.6,2608.8,1.91654]
[1723318935430,0.23970655,2609.7,2608.9,2.6714]
[1723318935636,0.09665389,2609.5,2609.0,1.91644]
[1723318935841,0.09671808,2609.6,2609.1,2.6714]
[1723318936146,0.09653864,2609.4,2609.1,2.6714]
[1723318936357,0.09664984,2609.5,2609.1,2.6714]
[1723318936558,0.09647039,2609.3,2609.1,2.6714]
[1723318936732,2.299149,2609.7,2609.1,2.6714]
[1723318936937,0.09627323,2609.2,2609.1,2.6714]
[1723318937140,0.4215029,2609.6,2609.1,2.6714]
[1723318937340,0.09665613,2609.2,2609.1,2.6714]
[1723318937548,2.3375029,2609.6,2609.1,2.6714]
[1723318937739,0.09667761,2609.2,2609.1,2.6714]
[1723318938062,0.0966296,2609.2,2608.7,2.6714]
[1723318939952,2.0129296,2609.2,2608.7,2.6714]
[1723318940155,0.39291896,2609.1,2608.7,2.6714]
[1723318940473,0.09637366,2609.0,2608.7,2.6714]
[1723318947564,0.09637366,2609.0,2608.4,1.91683]
[1723318947756,0.09637366,2609.0,2608.4,3.83366]
[1723318947958,0.09637366,2609.0,2608.5,1.9168]
[1723318948339,0.09637366,2609.0,2608.6,2.6714]
[1723318949067,0.09637366,2609.0,2608.6,4.58813]
[1723318949837,0.09637366,2609.0,2608.9,2.6714]
[1723318950343,3.0731,2609.5,2608.9,2.6714]
[1723318950543,0.09740925,2609.0,2608.9,2.6714]
[1723318951056,3.0731,2609.5,2608.9,2.6714]
[1723318951376,0.09740925,2609.0,2608.9,2.6714]
[1723318951533,1.91616,2609.4,2608.9,2.6714]
[1723318951734,1.91629,2609.2,2608.7,2.6714]
[1723318952145,0.09749896,2609.1,2608.7,2.6714]
[1723318952374,3.67959486,2609.1,2608.7,2.6714]
[1723318952536,1.91644,2609.0,2608.7,2.6714]
[1723318952736,3.67959486,2609.1,2608.7,2.6714]
[1723318952982,0.09628391,2608.9,2608.7,2.6714]
[1723318953142,1.91645,2609.0,2608.7,2.6714]
[1723318953352,0.09619415,2608.8,2608.7,2.6714]
[1723318953671,0.09726806,2608.8,2608.7,2.6714]
[1723318957688,2.01389806,2608.8,2608.3,2.8318]
[1723318958254,3.07366,2608.7,2608.3,2.8318]
[1723318958461,0.50875581,2608.6,2608.3,2.8318]
[1723318958698,0.60470746,2608.6,2608.3,2.8318]
[1723318960894,0.09595165,2608.6,2608.3,2.8318]
[1723318961074,1.91663,2608.8,2608.3,2.8318]
[1723318961271,4.91625,2609.3,2607.6,0.6007514]
[1723318961272,0.09572228,2608.5,2608.4,3.9888]
[1723318961470,1.91633,2609.2,2608.5,2.8318]
[1723318961967,1.91588,2609.8,2608.9,2.8318]
[1723318962168,3.07304,2609.6,2608.9,2.8318]
[1723318962470,0.307304,2609.5,2608.9,2.8318]
[1723318962683,1.157,2609.6,2608.9,2.8318]
[1723318962895,1.91588,2609.8,2609.0,1.91639]
[1723318962896,3.07288,2609.8,2609.0,1.91639]
[1723318963192,3.07288,2609.8,2608.8,3.15020944]
[1723318963193,0.307288,2609.7,2609.2,2.8318]
[1723318963393,2.223218,2609.7,2609.2,2.8318]
[1723318966106,7.3,2610.0,2609.0,2.8318]
[1723318966275,7.3,2610.0,2609.5,2.8318]
[1723318966462,31.96,2610.2,2609.5,2.8318]
[1723318966665,3.41927883,2610.1,2609.5,2.8318]
[1723318967493,5.33491883,2610.1,2609.5,2.8318]
[1723318967978,1.91571,2610.0,2609.5,2.8318]
[1723318968502,1.91583,2609.9,2609.5,2.8318]
[1723318969291,2.64090788,2609.9,2609.5,2.8318]
[1723318970503,5.33494883,2610.1,2609.5,2.8318]
[1723318970676,3.41927883,2610.1,2609.5,2.8318]
[1723318970867,29.30281833,2610.3,2609.5,4.74786]
[1723318971065,3.0,2610.2,2609.6,2.8318]
[1723318972380,1.91583,2609.9,2609.4,2.8318]
[1723318972577,1.91593,2609.7,2609.4,2.8318]
[1723318972777,0.09714817,2609.8,2609.4,2.8318]
[1723318973607,1.91599,2609.7,2609.4,2.8318]
[1723318973794,0.20131382,2609.6,2609.4,2.8318]
[1723318973999,0.29828263,2609.6,2609.4,2.8318]
[1723318975076,2.21433263,2609.6,2609.4,2.8318]
[1723318983999,0.29828263,2609.6,2609.4,2.8318]
[1723318984532,0.09696881,2609.6,2609.4,2.8318]
[1723318984715,19.77,2609.9,2609.4,2.8318]
[1723318984892,0.09667677,2609.5,2609.4,2.8318]
[1723318985092,19.77,2609.9,2609.4,2.8318]
[1723318985300,0.09668127,2609.5,2609.4,2.8318]
[1723318985505,19.77,2609.9,2609.4,3.306597]
[1723318985734,0.09668127,2609.5,2609.4,4.74794]
[1723318985907,7.3,2610.0,2609.5,2.7171]
[1723318986432,1.91587,2609.8,2609.5,2.7171]
[1723318987033,9.21574,2610.0,2609.5,2.7171]
[1723318987247,0.921574,2609.9,2609.5,2.7171]
[1723318987395,9.21574,2610.0,2609.5,2.7171]
[1723318987595,0.09695036,2609.8,2609.5,2.7171]
[1723318987918,0.09686067,2609.7,2609.5,2.7171]
[1723318988116,9.21574,2610.0,2609.5,2.7171]
[1723318988322,0.09677097,2609.6,2609.5,2.7171]
[1723318988522,10.628872,2610.0,2609.5,2.7171]
[1723318988722,0.09677097,2609.6,2609.5,2.7171]